fUSD/lending_fUSD_20260121
["ID","MTS","AMOUNT","RATE_DAILY","PERIOD"]
[402916640,1768987300429,-1009.37,0.00041917,120]
[402916641,1768987300470,-500.0,0.00041917,30]
[402916642,1768987300510,-500.0,0.00041917,120]
[402916643,1768987300552,-590.15,0.00041917,120]
[402916644,1768987300595,-500.0,0.00041917,120]
[402916645,1768987300639,-500.0,0.00041917,120]
[402916646,1768987300682,-728.36,0.00041917,120]
[402916647,1768987300729,-511.79358341,0.00041917,120]
[402916648,1768987300773,-807.88,0.00041917,120]
[402916649,1768987300820,-539.49,0.00041917,120]
[402916650,1768987300864,-500.0,0.00041917,120]
[402916651,1768987300909,-500.0,0.00041917,120]
[402916652,1768987300954,-866.91,0.00041917,120]
[402916653,1768987301001,-591.48187245,0.00041917,120]
[402916654,1768987301051,-583.82,0.00041917,120]
[402916655,1768987301098,-500.0,0.00041917,120]
[402916656,1768987301158,-878.83,0.00041917,120]
[402916657,1768987301208,-500.0,0.00041917,120]
[402916658,1768987301254,-362.13482482,0.00041917,120]
[402916659,1768987301300,-561.91355344,0.00041917,120]
[402916660,1768987301345,-500.0,0.00041917,120]
[402916661,1768987301391,-500.0,0.00041917,120]
[402916662,1768987301436,-500.0,0.00041917,120]
[402916663,1768987301481,-537.98,0.00041917,120]
[402916664,1768987301526,-500.0,0.00041917,120]
[402916665,1768987301572,-618.88,0.00041917,120]
[402916666,1768987301619,-612.25,0.00041917,120]
[402916667,1768987301667,-500.0,0.00041917,120]
[402916668,1768987301713,-500.0,0.00041917,120]
[402916669,1768987301760,-500.0,0.00041917,120]
[402916670,1768987301806,-500.0,0.00041917,120]
[402916671,1768987301852,-707.35,0.00041917,120]
[402916672,1768987301897,-376.7111738,0.00041917,120]
[402916673,1768987301943,-701.14,0.00041917,120]
[402916674,1768987301991,-903.02,0.00041917,120]
[402916675,1768987302039,-707.4,0.00041917,120]
[402916676,1768987302087,-500.0,0.00041917,120]
[402916677,1768987302133,-500.0,0.00041917,120]
[402916678,1768987302180,-500.0,0.00041917,120]
[402916679,1768987302227,-500.0,0.00041917,120]
[402916680,1768987302275,-583.47,0.00041917,120]
[402916681,1768987302322,-594.51,0.00041917,120]
[402916682,1768987302369,-500.0,0.00041917,120]
[402916683,1768987302415,-500.0,0.00041917,120]
[402916684,1768987302459,-571.74381339,0.00041917,120]
[402916685,1768987302504,-560.57,0.00041917,120]
[402916686,1768987302548,-500.0,0.00041917,120]
[402916687,1768987302593,-500.0,0.00041917,120]
[402916688,1768987302641,-500.0,0.00041917,120]
[402916689,1768987302687,-563.57,0.00041917,120]
[402916690,1768987302732,-500.0,0.00041917,120]
[402916691,1768987302777,-500.0,0.00041917,120]
[402916692,1768987302821,-500.0,0.00041917,120]
[402916693,1768987302866,-500.0,0.00041917,120]
[402916694,1768987302911,-703.49,0.00041917,120]
[402916695,1768987302955,-500.0,0.00041917,120]
[402916696,1768987303003,-578.11,0.00041917,120]
[402916697,1768987303050,-500.0,0.00041917,120]
[402916698,1768987303098,-500.0,0.00041917,120]
[402916699,1768987303146,-500.0,0.00041917,120]
[402916700,1768987303196,-500.0,0.00041917,120]
[402916701,1768987303245,-500.0,0.00041917,120]
[402916702,1768987303293,-500.0,0.00041917,120]
[402916703,1768987303347,-803.26,0.00041917,120]
[402916704,1768987303394,-500.0,0.00041917,120]
[402916705,1768987303444,-500.0,0.00041917,120]
[402916706,1768987303496,-1620.9,0.00041917,120]
[402916707,1768987303552,-500.0,0.00041917,120]
[402916708,1768987303605,-613.42,0.00041917,120]
[402916709,1768987303658,-500.0,0.00041917,120]
[402916710,1768987303716,-500.0,0.00041917,120]
[402916711,1768987303765,-674.99,0.00041917,120]
[402916712,1768987303819,-264.10284227,0.00041917,120]
[402916713,1768987303867,-500.0,0.00041917,120]
[402916714,1768987303918,-500.0,0.00041917,120]
[402916715,1768987303967,-255.91860107,0.00041917,120]
[402916716,1768987304017,-513.0727375,0.00041917,120]
[402916717,1768987304068,-500.0,0.00041917,120]
[402916718,1768987304114,-500.0,0.00041917,120]
[402916719,1768987304160,-500.0,0.00041917,120]
[402916720,1768987304212,-834.1,0.00041917,120]
[402916721,1768987304260,-500.0,0.00041917,120]
[402916722,1768987304307,-500.0,0.00041917,120]
[402916723,1768987304353,-517.01,0.00041917,120]
[402916724,1768987304404,-150.83976462,0.00041917,120]
[402916725,1768987304452,-617.98,0.00041917,120]
[402916726,1768987304498,-500.0,0.00041917,60]
[402916727,1768987304546,-1062.05,0.00041917,120]
[402916728,1768987304594,-500.0,0.00041917,120]
[402916729,1768987304951,-500.0,0.00041917,120]
[402916730,1768987304997,-500.0,0.00041917,120]
[402916731,1768987305044,-640.97784854,0.00041917,120]
[402916732,1768987305090,-500.0,0.00041917,120]
[402916733,1768987305137,-623.32,0.00041917,120]
[402916734,1768987305182,-500.0,0.00041917,120]
[402916735,1768987305225,-500.0,0.00041917,120]
[402916736,1768987305270,-500.0,0.00041917,120]
[402916737,1768987305316,-500.0,0.00041917,120]
[402916738,1768987305358,-500.0,0.00041917,120]
[402916739,1768987305400,-500.0,0.00041917,120]
[402916740,1768987305444,-1026.85,0.00041917,120]
[402916741,1768987305487,-500.0,0.00041917,120]
[402916742,1768987305530,-500.0,0.00041917,120]
[402916743,1768987305575,-500.0,0.00041917,120]
[402916744,1768987305621,-500.0,0.00041917,120]
[402916745,1768987305666,-500.0,0.00041917,60]
[402916746,1768987305725,-728.23,0.00041917,120]
[402916747,1768987305772,-746.53,0.00041917,120]
[402916748,1768987305819,-500.0,0.00041917,120]
[402916749,1768987305863,-923.81,0.00041917,120]
[402916750,1768987305907,-164.79362402,0.00041917,120]
[402916751,1768987305953,-500.0,0.00041917,120]
[402916752,1768987306002,-654.2,0.00041917,120]
[402916753,1768987306048,-550.62,0.00041917,120]
[402916754,1768987306095,-500.0,0.00041917,120]
[402916755,1768987306140,-500.0,0.00041917,120]
[402916756,1768987306187,-500.0,0.00041917,120]
[402916757,1768987306234,-500.0,0.00041917,120]
[402916758,1768987306280,-500.0,0.00041917,120]
[402916759,1768987306323,-528.06817702,0.00041917,120]
[402916760,1768987306367,-500.0,0.00041917,120]
[402916761,1768987306413,-500.0,0.00041917,120]
[402916762,1768987306455,-794.19,0.00041917,120]
[402916763,1768987306497,-500.0,0.00041917,120]
[402916764,1768987306539,-500.0,0.00041917,120]
[402916765,1768987306581,-554.98,0.00041917,120]
[402916766,1768987306622,-500.0,0.00041917,120]
[402916767,1768987306664,-584.84,0.00041917,120]
[402916768,1768987306707,-512.84,0.00041917,120]
[402916769,1768987306750,-500.0,0.00041917,120]
[402916770,1768987306793,-500.0,0.00041917,120]
[402916771,1768987306834,-500.0,0.00041917,120]
[402916772,1768987306875,-576.13,0.00041917,120]
[402916773,1768987306918,-500.0,0.00041917,120]
[402916774,1768987306960,-506.80569092,0.00041917,120]
[402916775,1768987307003,-4166.66,0.00041917,120]
[402916776,1768987307048,-746.35,0.00041917,120]
[402916777,1768987307094,-1172.0,0.00041917,120]
[402916778,1768987307137,-514.89324648,0.00041917,120]
[402916779,1768987307182,-500.0,0.00041917,120]
[402916780,1768987307224,-1386.84,0.00041917,120]
[402916781,1768987307265,-500.0,0.00041917,120]
[402916782,1768987307307,-500.0,0.00041917,120]
[402916783,1768987307349,-1597.56,0.00041917,120]
[402916784,1768987307391,-665.96,0.00041917,120]
[402916785,1768987307432,-1066.96,0.00041917,120]
[402916786,1768987307476,-500.0,0.00041917,120]
[402916787,1768987307516,-500.0,0.00041917,120]
[402916788,1768987307555,-500.0,0.00041917,120]
[402916789,1768987307601,-500.0,0.00041917,120]
[402916790,1768987307645,-500.0,0.00041917,120]
[402916791,1768987307687,-616.16,0.00041917,120]
[402916792,1768987307728,-500.0,0.00041917,120]
[402916793,1768987307770,-500.0,0.00041917,120]
[402916794,1768987307813,-522.64224279,0.00041917,120]
[402916795,1768987307856,-698.6,0.00041917,120]
[402916796,1768987307898,-664.11,0.00041917,120]
[402916797,1768987307940,-500.0,0.00041917,120]
[402916798,1768987307986,-500.0,0.00041917,120]
[402916799,1768987308034,-500.0,0.00041917,120]
[402916800,1768987308079,-521.79,0.00041917,120]
[402916801,1768987308121,-500.0,0.00041917,120]
[402916802,1768987308166,-500.0,0.00041917,120]
[402916803,1768987308209,-682.66,0.00041917,120]
[402916804,1768987308252,-837.65,0.00041917,120]
[402916805,1768987308294,-500.0,0.00041917,120]
[402916806,1768987308337,-500.0,0.00041917,120]
[402916807,1768987308379,-500.0,0.00041917,120]
[402916808,1768987308420,-500.0,0.00041917,120]
[402916809,1768987308461,-945.57,0.00041917,120]
[402916810,1768987308500,-500.0,0.00041917,120]
[402916811,1768987308541,-500.0,0.00041917,120]
[402916812,1768987308582,-507.3,0.00041917,120]
[402916813,1768987308622,-523.08802934,0.00041917,120]
[402916814,1768987308663,-500.0,0.00041917,120]
[402916815,1768987308705,-500.0,0.00041917,120]
[402916816,1768987308750,-500.0,0.00041917,120]
[402916817,1768987308793,-500.0,0.00041917,120]
[402916818,1768987308836,-803.48,0.00041917,120]
[402916819,1768987308876,-500.0,0.00041917,120]
[402916820,1768987308920,-500.0,0.00041917,90]
[402916821,1768987308962,-500.0,0.00041917,120]
[402916822,1768987309007,-857.88,0.00041917,120]
[402916823,1768987309053,-500.0,0.00041917,120]
[402916824,1768987309313,-500.0,0.00041917,120]
[402916825,1768987309361,-984.58,0.00041917,120]
[402916826,1768987309410,-500.0,0.00041917,120]
[402916827,1768987309456,-1120.51,0.00041917,120]
[402916828,1768987309502,-500.0,0.00041917,120]
[402916829,1768987309547,-593.66,0.00041917,60]
[402916830,1768987309593,-500.0,0.00041917,120]
[402916831,1768987309635,-500.0,0.00041917,120]
[402916832,1768987309679,-500.0,0.00041917,120]
[402916833,1768987309721,-580.95,0.00041917,120]
[402916834,1768987309764,-588.65,0.00041917,120]
[402916835,1768987309807,-658.39,0.00041917,120]
[402916836,1768987309851,-500.0,0.00041917,120]
[402916837,1768987309895,-500.0,0.00041917,120]
[402916838,1768987309939,-548.14,0.00041917,120]
[402916839,1768987309982,-520.08679531,0.00041917,120]
[402916840,1768987310031,-500.0,0.00041917,120]
[402916841,1768987310076,-885.84,0.00041917,120]
[402916842,1768987310121,-500.0,0.00041917,120]
[402916843,1768987310166,-500.0,0.00041917,120]
[402916844,1768987310211,-500.0,0.00041917,60]
[402916845,1768987310255,-648.06,0.00041917,120]
[402916846,1768987310298,-500.0,0.00041917,120]
[402916847,1768987310339,-500.0,0.00041917,120]
[402916848,1768987310380,-500.0,0.00041917,120]
[402916849,1768987310422,-1024.29,0.00041917,120]
[402916850,1768987310464,-500.0,0.00041917,120]
[402916851,1768987310506,-500.0,0.00041917,120]
[402916852,1768987310548,-529.71447631,0.00041917,120]
[402916853,1768987310592,-500.0,0.00041917,120]
[402916854,1768987310634,-560.22,0.00041917,120]
[402916855,1768987310683,-899.36,0.00041917,120]
[402916856,1768987310730,-773.36,0.00041917,120]
[402916857,1768987310774,-786.29,0.00041917,120]
[402916858,1768987310820,-758.45,0.00041917,120]
[402916859,1768987310863,-500.0,0.00041917,120]
[402916860,1768987310909,-500.0,0.00041917,120]
[402916861,1768987310955,-550.59,0.00041917,120]
[402916862,1768987311002,-712.83,0.00041917,120]
[402916863,1768987311047,-500.0,0.00041917,120]
[402916864,1768987311094,-691.81,0.00041917,120]
[402916865,1768987311140,-500.0,0.00041917,120]
[402916866,1768987311186,-500.0,0.00041917,120]
[402916867,1768987311234,-756.07,0.00041917,120]
[402916868,1768987311278,-500.0,0.00041917,120]
[402916869,1768987311321,-836.22,0.00041917,120]
[402916870,1768987311364,-500.0,0.00041917,120]
[402916871,1768987311408,-596.18,0.00041917,120]
[402916872,1768987311454,-500.51,0.00041917,120]
[402916873,1768987311498,-500.0,0.00041917,120]
[402916874,1768987311544,-500.0,0.00041917,120]
[402916875,1768987311587,-500.0,0.00041917,120]
[402916876,1768987311630,-500.0,0.00041917,120]
[402916877,1768987311673,-534.62,0.00041917,120]
[402916878,1768987311716,-500.0,0.00041917,120]
[402916879,1768987311761,-567.26,0.00041917,120]
[402916880,1768987311804,-500.0,0.00041917,120]
[402916881,1768987311848,-500.0,0.00041917,120]
[402916882,1768987311894,-500.0,0.00041917,120]
[402916883,1768987311939,-528.76,0.00041917,120]
[402916884,1768987311985,-535.96591332,0.00041917,120]
[402916885,1768987312035,-500.0,0.00041917,120]
[402916886,1768987312081,-500.0,0.00041917,120]
[402916887,1768987312129,-500.0,0.00041917,120]
[402916888,1768987312178,-500.0,0.00041917,120]
[402916889,1768987312224,-500.0,0.00041917,120]
[402916890,1768987312268,-595.06,0.00041917,120]
[402916891,1768987312312,-500.0,0.00041917,120]
[402916892,1768987312355,-500.0,0.00041917,120]
[402916893,1768987312397,-500.0,0.00041917,120]
[402916894,1768987312438,-500.0,0.00041917,120]
[402916895,1768987312481,-780.78,0.00041917,120]
[402916896,1768987312525,-500.0,0.00041917,120]
[402916897,1768987312567,-500.0,0.00041917,120]
[402916898,1768987312608,-500.0,0.00041917,120]
[402916899,1768987312651,-500.0,0.00041917,120]
[402916900,1768987312698,-500.85687241,0.00041917,120]
[402916901,1768987312749,-500.0,0.00041917,120]
[402916902,1768987312817,-500.0,0.00041917,120]
[402916903,1768987312867,-1493.28,0.00041917,120]
[402916904,1768987312911,-500.0,0.00041917,120]
[402916905,1768987312957,-500.0,0.00041917,120]
[402916906,1768987313004,-500.0,0.00041917,120]
[402916907,1768987313050,-500.0,0.00041917,120]
[402916908,1768987313100,-713.58,0.00041917,120]
[402916909,1768987313148,-776.76,0.00041917,120]
[402916910,1768987313195,-549.81486991,0.00041917,120]
[402916911,1768987313243,-500.0,0.00041917,120]
[402916912,1768987313290,-500.0,0.00041917,120]
[402916913,1768987313335,-662.63,0.00041917,120]
[402916914,1768987313378,-854.36,0.00041917,120]
[402916915,1768987313422,-500.0,0.00041917,120]
[402916916,1768987313466,-500.0,0.00041917,120]
[402916917,1768987313509,-600.0,0.00041918,120]
[402916918,1768987313740,-822.33829093,0.00041918,30]
[402916919,1768987313788,-150.0,0.00041961,30]
[402916920,1768987313834,-150.0,0.00041992,120]
[402916921,1768987313883,-50000.0,0.00042,42]
[402916922,1768987313931,-312.59,0.00042,120]
[402916923,1768987313980,-392.78290421,0.00042,120]
[402916924,1768987314034,-54232.30727604,0.00042,60]
[402916925,1768987314082,-500.0,0.00042,120]
[402916926,1768987314132,-500.0,0.00042,120]
[402916927,1768987314182,-30003.5246111,0.00042,120]
[402916928,1768987314232,-2897.42147107,0.00042,60]
[402916929,1768987314282,-1737.0,0.00042,90]
[402916930,1768987314328,-16000.0,0.00042,120]
[402916931,1768987314375,-1000.0,0.00042,120]
[402916932,1768987314422,-1841.56618361,0.00042,120]
[402916933,1768987314470,-1000.0,0.00042,120]
[402916934,1768987314518,-354.19,0.00042,120]
[402916935,1768987314565,-1393.01023705,0.00042,30]
[402916936,1768987314611,-3100.0,0.00042,120]
[402916937,1768987314657,-1008.53840225,0.00042,120]
[402916938,1768987314704,-174.0270693,0.00042,30]
[402916939,1768987314755,-253.0,0.00042,37]
[402916940,1768987314805,-150.0,0.00042001,30]
[402916941,1768987314857,-822.33829093,0.00042082,30]
[402916942,1768987314908,-150.0,0.00042121,30]
[402916943,1768987314956,-1032.85956521,0.00042143,120]
[402916944,1768987315002,-150.0,0.00042155,30]
[402916945,1768987315050,-150.0,0.00042184,120]
[402916946,1768987315099,-600.0,0.0004219,60]
[402916947,1768987315146,-1300.0,0.0004219,60]
[402916948,1768987315193,-500.0,0.00042191,120]
[402916949,1768987315239,-500.0,0.00042191,30]
[402916950,1768987315288,-221.943179,0.00042191,120]
[402916951,1768987315334,-151.0,0.00042191,60]
[402916952,1768987315380,-500.0,0.00042191,120]
[402916953,1768987315425,-500.0,0.00042191,120]
[402916954,1768987315472,-500.0,0.00042191,120]
[402916955,1768987315517,-500.0,0.00042191,120]
[402916956,1768987315562,-500.0,0.00042191,120]
[402916957,1768987315607,-247.87788536,0.00042191,120]
[402916958,1768987315652,-500.0,0.00042191,120]
[402916959,1768987315696,-725.08,0.00042191,120]
[402916960,1768987315742,-257.63358205,0.00042191,120]
[402916961,1768987315792,-500.0,0.00042191,120]
[402916962,1768987315841,-394.49215118,0.00042191,120]
[402916963,1768987315889,-772.75,0.00042191,120]
[402916964,1768987315938,-632.54,0.00042191,120]
[402916965,1768987315985,-500.0,0.00042191,120]
[402916966,1768987316036,-500.0,0.00042191,120]
[402916967,1768987316082,-500.0,0.00042191,120]
[402916968,1768987316129,-764.37,0.00042191,120]
[402916969,1768987316183,-500.0,0.00042191,120]
[402916970,1768987316235,-500.0,0.00042191,120]
[402916971,1768987316286,-500.0,0.00042191,120]
[402916972,1768987316334,-500.0,0.00042191,120]
[402916973,1768987316380,-597.22,0.00042191,120]
[402916974,1768987316425,-626.03,0.00042191,120]
[402916975,1768987316470,-544.03,0.00042191,120]
[402916976,1768987316513,-500.0,0.00042191,120]
[402916977,1768987316560,-500.0,0.00042191,120]
[402916978,1768987316602,-962.76,0.00042191,120]
[402916979,1768987316645,-500.0,0.00042191,120]
[402916980,1768987316688,-500.0,0.00042191,120]
[402916981,1768987316731,-358.24014907,0.00042191,120]
[402916982,1768987316775,-500.0,0.00042191,120]
[402916983,1768987316819,-500.0,0.00042191,120]
[402916984,1768987316862,-500.0,0.00042191,120]
[402916985,1768987316905,-500.0,0.00042191,120]
[402916986,1768987316953,-500.0,0.00042191,120]
[402916987,1768987316998,-500.0,0.00042191,120]
[402916988,1768987317043,-647.87,0.00042191,120]
[402916989,1768987317088,-500.0,0.00042191,120]
[402916990,1768987317133,-500.0,0.00042191,120]
[402916991,1768987317177,-500.0,0.00042191,120]
[402916992,1768987317221,-500.0,0.00042191,120]
[402916993,1768987317266,-500.0,0.00042191,120]
[402916994,1768987317310,-500.0,0.00042191,120]
[402916995,1768987317356,-1247.52,0.00042191,120]
[402916996,1768987317400,-525.14167587,0.00042191,120]
[402916997,1768987317448,-500.0,0.00042191,120]
[402916998,1768987317491,-559.96968112,0.00042191,120]
[402916999,1768987317534,-500.0,0.00042191,120]
[402917000,1768987317577,-500.0,0.00042191,60]
[402917001,1768987317620,-500.0,0.00042191,120]
[402917002,1768987317662,-500.0,0.00042191,120]
[402917003,1768987317710,-507.15394243,0.00042191,120]
[402917004,1768987317753,-1561.5,0.00042191,120]
[402917005,1768987317797,-164.09864552,0.00042191,120]
[402917006,1768987317840,-500.0,0.00042191,120]
[402917007,1768987317882,-502.81,0.00042191,120]
[402917008,1768987317936,-500.0,0.00042191,120]
[402917009,1768987317989,-500.0,0.00042191,120]
[402917010,1768987318048,-500.0,0.00042191,120]
[402917011,1768987318094,-500.0,0.00042191,120]
[402917012,1768987318143,-500.0,0.00042191,120]
[402917013,1768987318447,-500.0,0.00042191,120]
[402917014,1768987318511,-558.18,0.00042191,120]
[402917015,1768987318564,-500.0,0.00042191,120]
[402917016,1768987318610,-500.0,0.00042191,120]
[402917017,1768987318656,-500.0,0.00042191,120]
[402917018,1768987318701,-605.31766216,0.00042191,120]
[402917019,1768987318745,-500.0,0.00042191,120]
[402917020,1768987318789,-500.0,0.00042191,120]
[402917021,1768987318834,-500.0,0.00042191,120]
[402917022,1768987318876,-500.0,0.00042191,120]
[402917023,1768987318920,-823.22,0.00042191,120]
[402917024,1768987318967,-535.1,0.00042191,120]
[402917025,1768987319013,-500.0,0.00042191,120]
[402917026,1768987319059,-500.73,0.00042191,120]
[402917027,1768987319107,-522.19249025,0.00042191,120]
[402917028,1768987319153,-500.0,0.00042191,120]
[402917029,1768987319205,-500.0,0.00042191,30]
[402917030,1768987319252,-500.0,0.00042191,120]
[402917031,1768987319302,-500.0,0.00042191,120]
[402917032,1768987319350,-500.0,0.00042191,120]
[402917033,1768987319397,-577.55,0.00042191,120]
[402917034,1768987319444,-695.59,0.00042191,120]
[402917035,1768987319488,-500.0,0.00042191,120]
[402917036,1768987319533,-500.0,0.00042191,120]
[402917037,1768987319587,-469.45913978,0.00042191,120]
[402917038,1768987319635,-500.0,0.00042191,120]
[402917039,1768987319682,-500.0,0.00042191,120]
[402917040,1768987319730,-500.0,0.00042191,120]
[402917041,1768987319777,-942.75,0.00042191,120]
[402917042,1768987319823,-500.0,0.00042191,120]
[402917043,1768987319870,-500.0,0.00042191,120]
[402917044,1768987319921,-521.58605573,0.00042191,120]
[402917045,1768987319971,-334.47263676,0.00042191,120]
[402917046,1768987320019,-500.0,0.00042191,120]
[402917047,1768987320073,-374.40782221,0.00042191,120]
[402917048,1768987320124,-500.0,0.00042191,120]
[402917049,1768987320176,-500.0,0.00042191,120]
[402917050,1768987320228,-428.34690935,0.00042191,120]
[402917051,1768987320284,-500.0,0.00042191,120]
[402917052,1768987320338,-500.0,0.00042191,120]
[402917053,1768987320388,-500.0,0.00042191,120]
[402917054,1768987320439,-500.0,0.00042191,120]
[402917055,1768987320487,-500.0,0.00042191,120]
[402917056,1768987320534,-571.77,0.00042191,120]
[402917057,1768987320583,-500.0,0.00042191,120]
[402917058,1768987320630,-520.65133812,0.00042191,120]
[402917059,1768987320677,-500.0,0.00042191,120]
[402917060,1768987320728,-500.0,0.00042191,120]
[402917061,1768987320777,-500.0,0.00042191,120]
[402917062,1768987320825,-500.0,0.00042191,120]
[402917063,1768987320871,-500.0,0.00042191,120]
[402917064,1768987320917,-500.0,0.00042191,120]
[402917065,1768987320966,-500.0,0.00042191,120]
[402917066,1768987321015,-500.0,0.00042191,120]
[402917067,1768987321065,-516.62837699,0.00042191,120]
[402917068,1768987321114,-523.28494036,0.00042191,120]
[402917069,1768987321168,-500.0,0.00042191,120]
[402917070,1768987321222,-500.0,0.00042191,120]
[402917071,1768987321274,-500.0,0.00042191,120]
[402917072,1768987321322,-583.44834991,0.00042191,120]
[402917073,1768987321370,-500.0,0.00042191,120]
[402917074,1768987321416,-512.50415962,0.00042191,120]
[402917075,1768987321467,-367.71374146,0.00042191,120]
[402917076,1768987321513,-500.0,0.00042191,120]
[402917077,1768987321560,-500.0,0.00042191,120]
[402917078,1768987321607,-500.0,0.00042191,60]
[402917079,1768987321653,-500.0,0.00042191,120]
[402917080,1768987321699,-500.0,0.00042191,120]
[402917081,1768987321747,-500.0,0.00042191,120]
[402917082,1768987321796,-500.0,0.00042191,120]
[402917083,1768987321843,-500.0,0.00042191,120]
[402917084,1768987321890,-500.0,0.00042191,120]
[402917085,1768987321937,-500.0,0.00042191,120]
[402917086,1768987321985,-500.0,0.00042191,120]
[402917087,1768987322037,-500.0,0.00042191,120]
[402917088,1768987322086,-500.0,0.00042191,120]
[402917089,1768987322135,-500.0,0.00042191,120]
[402917090,1768987322184,-500.0,0.00042191,120]
[402917091,1768987322231,-500.0,0.00042191,120]
[402917092,1768987322278,-500.0,0.00042191,120]
[402917093,1768987322324,-500.0,0.00042191,90]
[402917094,1768987322368,-500.0,0.00042191,120]
[402917095,1768987322413,-500.0,0.00042191,120]
[402917096,1768987322458,-500.0,0.00042191,120]
[402917097,1768987322503,-500.0,0.00042191,120]
[402917098,1768987322547,-500.0,0.00042191,120]
[402917099,1768987322592,-500.0,0.00042191,120]
[402917100,1768987322637,-500.0,0.00042191,120]
[402917101,1768987322683,-500.0,0.00042191,120]
[402917102,1768987322731,-640.20849055,0.00042191,120]
[402917103,1768987322780,-500.0,0.00042191,120]
[402917104,1768987322826,-500.0,0.00042191,120]
[402917105,1768987322872,-500.0,0.00042191,120]
[402917106,1768987322921,-500.0,0.00042191,120]
[402917107,1768987323212,-500.0,0.00042191,120]
[402917108,1768987323265,-500.0,0.00042191,120]
[402917109,1768987323319,-500.0,0.00042191,120]
[402917110,1768987323372,-500.0,0.00042191,120]
[402917111,1768987323425,-510.71526625,0.00042191,120]
[402917112,1768987323477,-500.0,0.00042191,120]
[402917113,1768987323528,-627.05031314,0.00042191,120]
[402917114,1768987323579,-515.02661249,0.00042191,120]
[402917115,1768987323635,-500.0,0.00042191,120]
[402917116,1768987323688,-500.0,0.00042191,120]
[402917117,1768987323741,-500.0,0.00042191,120]
[402917118,1768987323793,-500.0,0.00042191,120]
[402917119,1768987323845,-500.0,0.00042191,120]
[402917120,1768987323902,-500.0,0.00042191,120]
[402917121,1768987323956,-500.0,0.00042191,120]
[402917122,1768987324011,-500.0,0.00042191,120]
[402917123,1768987324068,-500.0,0.00042191,120]
[402917124,1768987324127,-500.0,0.00042191,120]
[402917125,1768987324186,-500.0,0.00042191,120]
[402917126,1768987324242,-500.0,0.00042191,120]
[402917127,1768987324305,-500.0,0.00042191,120]
[402917128,1768987324360,-500.0,0.00042191,120]
[402917129,1768987324415,-500.0,0.00042191,120]
[402917130,1768987324469,-500.0,0.00042191,120]
[402917131,1768987324525,-500.0,0.00042191,120]
[402917132,1768987324585,-500.0,0.00042191,120]
[402917133,1768987324647,-500.0,0.00042191,120]
[402917134,1768987324703,-500.0,0.00042191,120]
[402917135,1768987324756,-733.59,0.00042191,120]
[402917136,1768987324811,-500.0,0.00042191,120]
[402917137,1768987324867,-539.04,0.00042191,120]
[402917138,1768987324919,-500.0,0.00042191,120]
[402917139,1768987324976,-500.0,0.00042191,120]